fUST/lending_fUST_20240629
["ID","MTS","AMOUNT","RATE_DAILY","PERIOD"]
[330596893,1719607854875,-545.34904819,0.00021917,4]
[330596895,1719607854885,-63333.29,0.00021917,4]
[330596897,1719607854895,-500.0,0.00021917,4]
[330596899,1719607854904,-538.3674138,0.00021917,4]
[330596901,1719607854913,-500.0,0.00021917,4]
[330596903,1719607854923,-500.0,0.00021917,4]
[330596905,1719607854931,-500.0,0.00021917,4]
[330596907,1719607854941,-500.0,0.00021917,4]
[330596909,1719607854951,-7430.95,0.00021917,4]
[330596911,1719607854960,-3029.65,0.00021917,4]
[330596913,1719607854969,-504.8817895,0.00021917,4]
[330596915,1719607854979,-4272.86,0.00021917,4]
[330596917,1719607854990,-500.0,0.00021917,4]
[330596919,1719607854999,-500.0,0.00021917,4]
[330596920,1719607855008,-1976.65,0.00021917,4]
[330596921,1719607855017,-504.21709346,0.00021917,4]
[330596922,1719607855027,-215.42829121,0.00021917,4]
[330596923,1719607855037,-500.0,0.00021917,4]
[330596924,1719607855047,-500.0,0.00021917,4]
[330596925,1719607855057,-12882.59,0.00021917,4]
[330596926,1719607855067,-679.39,0.00021917,4]
[330596927,1719607855077,-1234.74,0.00021917,4]
[330596928,1719607855087,-1707.63,0.00021917,4]
[330596929,1719607855096,-1329.91,0.00021917,2]
[330596930,1719607855106,-820.25,0.00021917,4]
[330596931,1719607855116,-500.0,0.00021917,4]
[330596932,1719607855126,-500.0,0.00021917,4]
[330596933,1719607855137,-500.0,0.00021917,4]
[330596934,1719607855147,-1714.47,0.00021917,4]
[330596935,1719607855157,-500.0,0.00021917,4]
[330596936,1719607855167,-500.0,0.00021917,4]
[330596937,1719607855178,-1263.3,0.00021917,4]
[330596938,1719607855188,-500.0,0.00021917,4]
[330596939,1719607855198,-672.79,0.00021917,4]
[330596940,1719607855207,-500.0,0.00021917,4]
[330596941,1719607855217,-870.36,0.00021917,4]
[330596942,1719607855226,-500.0,0.00021917,4]
[330596943,1719607855237,-1476.03,0.00021917,4]
[330596944,1719607855247,-500.0,0.00021917,4]
[330596945,1719607855256,-12700.97,0.00021917,4]
[330596946,1719607855266,-417.80167404,0.00021917,4]
[330596947,1719607855276,-500.0,0.00021917,4]
[330596948,1719607855285,-514.01531985,0.00021917,4]
[330596949,1719607855295,-500.0,0.00021917,4]
[330596950,1719607855304,-510.4442652,0.00021917,4]
[330596951,1719607855314,-500.0,0.00021917,4]
[330596952,1719607855324,-605.64818879,0.00021917,4]
[330596953,1719607855334,-1066.29,0.00021917,4]
[330596954,1719607855344,-500.0,0.00021917,4]
[330596955,1719607855354,-500.0,0.00021917,4]
[330596956,1719607855364,-1062.68,0.00021917,4]
[330596957,1719607855374,-5024.25,0.00021917,4]
[330596958,1719607855384,-500.0,0.00021917,4]
[330596959,1719607855394,-502.88807649,0.00021917,4]
[330596960,1719607855405,-500.0,0.00021917,4]
[330596961,1719607855415,-503.37920091,0.00021917,4]
[330596962,1719607855425,-2575.89,0.00021917,4]
[330596963,1719607855435,-3683.28,0.00021917,4]
[330596964,1719607855445,-500.0,0.00021917,4]
[330596965,1719607855455,-10871.42,0.00021917,4]
[330596966,1719607855465,-500.0,0.00021917,4]
[330596967,1719607855475,-500.0,0.00021917,4]
[330596968,1719607855486,-500.0,0.00021917,2]
[330596969,1719607855495,-500.0,0.00021917,2]
[330596970,1719607855505,-500.0,0.00021917,4]
[330596971,1719607855515,-500.0,0.00021917,4]
[330596972,1719607855526,-500.0,0.00021917,4]
[330596973,1719607855536,-511.52815404,0.00021917,4]
[330596974,1719607855546,-505.68958182,0.00021917,4]
[330596975,1719607855556,-525.58707619,0.00021917,4]
[330596976,1719607855567,-151.0,0.00021917,2]
[330596977,1719607855577,-151.0,0.00021917,2]
[330596978,1719607855587,-500.0,0.00021917,4]
[330596979,1719607855596,-1061.22,0.00021917,4]
[330596980,1719607855606,-224.13501849,0.00021917,4]
[330596981,1719607855615,-500.0,0.00021917,4]
[330596982,1719607855626,-500.0,0.00021917,4]
[330596983,1719607855635,-11150.15,0.00021917,4]
[330596984,1719607855647,-551.58,0.00021917,4]
[330596985,1719607855662,-11150.15,0.00021917,4]
[330596986,1719607855672,-11150.15,0.00021917,4]
[330596987,1719607855682,-11150.15,0.00021917,4]
[330596988,1719607855694,-920.36,0.00021917,4]
[330596989,1719607855703,-4214.36,0.00021917,4]
[330596990,1719607855713,-11150.15,0.00021917,4]
[330596991,1719607855723,-11150.15,0.00021917,4]
[330596992,1719607855734,-11150.15,0.00021917,4]
[330596993,1719607855744,-11150.15,0.00021917,4]
[330596994,1719607855754,-9530.83067449,0.00021917,4]
[330597033,1719608212607,166.666666,0.00014904,2]
[330597034,1719608300689,11900.43327307,0.00014794,2]
[330597035,1719608456785,154.80649189,0.00014999,2]
[330597038,1719608550601,916.65609247,0.00014999,2]
[330597039,1719608596784,154.80649189,0.00014999,2]
[330597040,1719608726780,154.80649189,0.00014999,2]
[330597041,1719608730084,916.65609247,0.00014999,2]
[330597044,1719608797787,166.666666,0.00014904,2]
[330597045,1719608834162,-898.90290048,0.00016155,2]
[330597046,1719608834182,-38886.96773544,0.00016255,2]
[330597047,1719608834202,-26057.44447196,0.00016255,2]
[330597048,1719608834220,-232.246076,0.00016452,2]
[330597049,1719608834240,-2580.89461927,0.00016734,2]
[330597050,1719608834259,-275.99740514,0.0001682,2]
[330597051,1719608834281,-898.90290046,0.00017629,2]
[330597052,1719608834303,-2580.89461924,0.00018005,2]
[330597053,1719608834324,-24900.0,0.00018068,2]
[330597054,1719608834343,-309.43593096,0.0001818,2]
[330597055,1719608834362,-916.65609247,0.0001818,2]
[330597056,1719608834381,-772.0,0.0001835,2]
[330597057,1719608834400,-154.80649189,0.00018798,2]
[330597058,1719608834419,-207.76713087,0.00018899,2]
[330597059,1719608834438,-197.0122384,0.00019039,2]
[330597060,1719608834457,-250.0,0.00019041,2]
[330597061,1719608834477,-898.90290046,0.00019104,2]
[330597062,1719608834498,-78745.4898649,0.00019168,2]
[330597063,1719608834518,-500.0,0.00019178,2]
[330597064,1719608834540,-246.88054129,0.00019178,2]
[330597065,1719608834559,-500.0,0.00019178,2]
[330597066,1719608834578,-500.0,0.00019178,2]
[330597067,1719608834597,-204.27353582,0.00019178,2]
[330597068,1719608834615,-174.81149158,0.00019178,2]
[330597069,1719608834636,-500.0,0.00019178,2]
[330597070,1719608834655,-456.30060092,0.00019178,2]
[330597071,1719608834674,-500.0,0.00019178,2]
[330597072,1719608834695,-500.0,0.00019178,2]
[330597073,1719608834715,-500.0,0.00019178,2]
[330597074,1719608834735,-500.0,0.00019178,2]
[330597075,1719608834753,-340.07126402,0.00019178,2]
[330597076,1719608834773,-500.0,0.00019178,2]
[330597077,1719608834796,-500.0,0.00019178,2]
[330597078,1719608834819,-194.989317,0.00019178,2]
[330597079,1719608834838,-2580.89461924,0.00019276,2]
[330597080,1719608834857,-249.49483677,0.00019817,2]
[330597081,1719608834877,-151.31843755,0.0002,2]
[330597082,1719608834897,-5597.19695973,0.00020321,2]
[330597083,1719608834917,-154.80649189,0.00020545,2]
[330597084,1719608834937,-2580.89461924,0.00020546,2]
[330597085,1719608834964,-898.90290046,0.00020578,2]
[330597086,1719608834985,-456.6,0.00020586,2]
[330597087,1719608835005,-500.0,0.00020764,7]
[330597088,1719608835024,-500.0,0.00020764,7]
[330597089,1719608835047,-500.0,0.00020764,7]
[330597090,1719608835068,-500.0,0.00020764,7]
[330597091,1719608835088,-500.0,0.00020764,7]
[330597092,1719608835108,-159.11,0.00020764,7]
[330597093,1719608835129,-525.58556234,0.00021095,2]
[330597094,1719608835149,-293.04302917,0.00021095,2]
[330597095,1719608835169,-477.233792,0.00021096,2]
[330597096,1719608835188,-772.0,0.0002135,2]
[330597097,1719608835210,-5990.09601544,0.000215,7]
[330597098,1719608900059,916.65609247,0.00014999,2]
[330597142,1719609032401,-309.43593096,0.00016255,2]
[330597144,1719609032411,-166.32989118,0.000189,2]
[330597146,1719609032419,-772.0,0.00018986,2]
[330597148,1719609032429,-435.0,0.0002,2]
[330597150,1719609032439,-154.80649189,0.0002,2]
[330597152,1719609032448,-1.88078582,0.00021096,2]
[330597154,1719609032460,-451.49131618,0.00021096,2]
[330597156,1719609032470,-2497.22868382,0.000215,2]
[330597158,1719609032481,-502.77131618,0.000215,2]
[330597160,1719609032491,-154.80649189,0.000215,2]
[330597162,1719609032500,-346.00212167,0.000215,2]
[330597166,1719609032529,-1118.48016119,0.000215,2]
[330597168,1719609032538,-225.44709256,0.000215,2]
[330597170,1719609032548,-477.27914454,0.000215,2]
[330597341,1719609038504,-744.0,0.000215,2]
[330597342,1719609038517,-3262.07318762,0.000215,2]
[330597343,1719609038527,-3000.0,0.0002151,2]
[330597344,1719609038536,-3000.0,0.0002152,2]
[330597346,1719609038546,-3000.0,0.0002153,2]
[330597347,1719609038556,-3000.0,0.0002154,2]
[330597348,1719609038566,-3095.109785,0.0002155,2]
[330597349,1719609038576,-516.17892388,0.000216,2]
[330597350,1719609038586,-449.45145023,0.000216,2]
[330597351,1719609038596,-1000.0,0.0002165,2]
[330597352,1719609038607,-516.17892384,0.00021654,2]
[330597353,1719609038617,-300.85777738,0.00021668,2]
[330597354,1719609038627,-500.0,0.00021689,2]
[330597355,1719609038636,-409.84311468,0.00021689,2]
[330597356,1719609038646,-500.0,0.00021689,2]
[330597357,1719609038655,-302.0213792,0.00021689,2]
[330597358,1719609038666,-74808.2153717,0.0002169,2]
[330597359,1719609038676,-28716.7200246,0.000217,3]
[330597360,1719609038687,-1000.0,0.000217,2]
[330597361,1719609038698,-516.17892384,0.00021709,2]
[330597362,1719609038709,-1000.0,0.00021762,2]
[330597363,1719609038719,-516.17892384,0.00021763,2]
[330597365,1719609038729,-516.17892384,0.00021817,2]
[330597367,1719609038739,-1000.0,0.00021862,2]
[330597369,1719609038748,-7656.67575345,0.00021896,7]
[330597371,1719609038758,-299232.861487,0.00021897,2]
[330597373,1719609038767,-404.0,0.000219,2]
[330597375,1719609038777,-495.0,0.000219,2]
[330597377,1719609038786,-303.759438,0.000219,9]
[330597379,1719609038795,-809.0,0.000219,2]
[330597380,1719609038804,-809.0,0.000219,2]
[330597382,1719609038813,-500.0,0.00021917,4]
[330597384,1719609038822,-500.0,0.00021917,4]
[330597385,1719609038832,-1053.33,0.00021917,4]
[330597386,1719609038842,-581.35,0.00021917,4]
[330597387,1719609038851,-500.0,0.00021917,4]
[330597388,1719609038861,-500.0,0.00021917,4]
[330597389,1719609038872,-500.0,0.00021917,4]
[330597390,1719609039015,-500.0,0.00021917,2]
[330597391,1719609039028,-2317.09,0.00021917,4]
[330597392,1719609039039,-500.0,0.00021917,4]
[330597393,1719609039051,-509.61141228,0.00021917,4]
[330597394,1719609039061,-922.96,0.00021917,4]
[330597395,1719609039072,-517.02411873,0.00021917,4]
[330597396,1719609039085,-500.0,0.00021917,4]
[330597397,1719609039098,-500.0,0.00021917,4]
[330597398,1719609039108,-834.68,0.00021917,4]
[330597399,1719609039118,-500.0,0.00021917,4]
[330597400,1719609039128,-500.0,0.00021917,4]
[330597401,1719609039138,-506.00687624,0.00021917,4]
[330597402,1719609039148,-500.0,0.00021917,4]
[330597403,1719609039158,-500.0,0.00021917,4]
[330597404,1719609039168,-500.0,0.00021917,4]
[330597405,1719609039179,-500.0,0.00021917,4]
[330597406,1719609039188,-500.0,0.00021917,4]
[330597407,1719609039203,-803.38,0.00021917,4]
[330597408,1719609039213,-500.0,0.00021917,4]
[330597409,1719609039222,-500.0,0.00021917,4]
[330597410,1719609039232,-500.0,0.00021917,4]
[330597411,1719609039242,-500.0,0.00021917,4]
[330597412,1719609039253,-500.0,0.00021917,4]
[330597413,1719609039263,-1513.65,0.00021917,4]
[330597414,1719609039274,-500.0,0.00021917,4]
[330597415,1719609039284,-500.0,0.00021917,4]
[330597416,1719609039294,-500.0,0.00021917,4]
[330597417,1719609039304,-969.26,0.00021917,4]
[330597418,1719609039315,-500.0,0.00021917,4]
[330597419,1719609039325,-580.44,0.00021917,4]
[330597420,1719609039335,-1279.12,0.00021917,4]
[330597421,1719609039345,-500.0,0.00021917,4]
[330597422,1719609039356,-750.55,0.00021917,4]
[330597423,1719609039366,-500.73030307,0.00021917,4]
[330597424,1719609039376,-500.0,0.00021917,4]
[330597425,1719609039388,-539.73586323,0.00021917,4]
[330597426,1719609039398,-527.85,0.00021917,4]
[330597427,1719609039409,-762.9,0.00021917,4]
[330597428,1719609039420,-500.0,0.00021917,4]
[330597429,1719609039430,-500.0,0.00021917,4]
[330597430,1719609039440,-515.57382204,0.00021917,4]
[330597431,1719609039455,-500.0,0.00021917,4]
[330597432,1719609039466,-794.3,0.00021917,4]
[330597433,1719609039476,-500.0,0.00021917,4]
[330597434,1719609039486,-500.0,0.00021917,4]
[330597435,1719609039496,-504.02244468,0.00021917,4]
[330597436,1719609039507,-500.0,0.00021917,4]
[330597437,1719609039517,-500.0,0.00021917,4]
[330597438,1719609039528,-500.0,0.00021917,4]
[330597439,1719609039538,-500.0,0.00021917,4]
[330597440,1719609039548,-500.0,0.00021917,4]
[330597441,1719609039558,-500.0,0.00021917,4]
[330597442,1719609039568,-500.0,0.00021917,4]
[330597443,1719609039579,-555.98858523,0.00021917,4]
[330597444,1719609039589,-503.5846725,0.00021917,4]
[330597445,1719609039598,-484.57036608,0.00021917,4]
[330597446,1719609039608,-526.04,0.00021917,4]
[330597447,1719609039619,-819.47,0.00021917,4]
[330597448,1719609039629,-510.65213788,0.00021917,4]
[330597449,1719609039639,-905.98,0.00021917,4]
[330597450,1719609039649,-500.0,0.00021917,4]
[330597451,1719609039662,-500.0,0.00021917,4]
[330597452,1719609039672,-500.0,0.00021917,4]
[330597453,1719609039683,-565.06102136,0.00021917,4]
[330597454,1719609039697,-500.0,0.00021917,4]
[330597455,1719609039708,-500.0,0.00021917,4]
[330597456,1719609039719,-531.72919795,0.00021917,4]
[330597457,1719609039729,-500.0,0.00021917,4]
[330597458,1719609039739,-500.0,0.00021917,4]
[330597459,1719609039749,-1589.77,0.00021917,4]
[330597460,1719609039759,-500.0,0.00021917,4]
[330597461,1719609039770,-500.0,0.00021917,4]
[330597462,1719609039780,-500.0,0.00021917,4]
[330597463,1719609039790,-500.0,0.00021917,4]
[330597464,1719609039800,-1414.16,0.00021917,4]
[330597465,1719609039810,-514.41,0.00021917,4]
[330597466,1719609039821,-500.0,0.00021917,4]
[330597467,1719609039831,-513.09950139,0.00021917,4]
[330597468,1719609039841,-500.0,0.00021917,4]
[330597469,1719609039851,-500.0,0.00021917,4]
[330597470,1719609039861,-549.62,0.00021917,4]
[330597471,1719609039870,-507.86062579,0.00021917,4]
[330597472,1719609039880,-1020.77,0.00021917,4]
[330597473,1719609039890,-500.0,0.00021917,4]
[330597474,1719609039900,-500.0,0.00021917,4]
[330597475,1719609039911,-500.0,0.00021917,4]
[330597476,1719609039920,-1990.0703815,0.00021917,4]
[330597491,1719609040392,-343.7896185,0.00021917,4]
[330597493,1719609040402,-500.0,0.00021917,4]
[330597495,1719609040412,-500.0,0.00021917,4]
[330597497,1719609040422,-500.0,0.00021917,4]
[330597499,1719609040431,-718.41,0.00021917,4]
[330597500,1719609040442,-500.0,0.00021917,4]
[330597501,1719609040453,-632.14,0.00021917,4]
[330597502,1719609040463,-500.0,0.00021917,4]
[330597504,1719609040472,-2254.28,0.00021917,4]
[330597506,1719609040481,-1134.77,0.00021917,4]
[330597508,1719609040491,-500.0,0.00021917,4]
[330597510,1719609040500,-500.0,0.00021917,4]
[330597512,1719609040510,-500.0,0.00021917,4]
[330597513,1719609040520,-500.0,0.00021917,4]
[330597515,1719609040530,-552.34,0.00021917,4]
[330597517,1719609040540,-500.0,0.00021917,4]
[330597519,1719609040550,-655.59,0.00021917,4]
[330597521,1719609040559,-500.0,0.00021917,4]
[330597523,1719609040569,-500.0,0.00021917,4]
[330597524,1719609040579,-500.0,0.00021917,4]
[330597525,1719609040589,-500.0,0.00021917,4]
[330597527,1719609040599,-500.0,0.00021917,4]
[330597529,1719609040609,-1584.44,0.00021917,4]
[330597531,1719609040619,-705.63,0.00021917,4]
[330597533,1719609040629,-500.0,0.00021917,4]
[330597534,1719609040638,-992.69,0.00021917,4]
[330597536,1719609040647,-639.4322931,0.00021917,4]
[330597538,1719609040657,-963.94,0.00021917,4]
[330597540,1719609040667,-500.0,0.00021917,4]
[330597542,1719609040677,-2618.52,0.00021917,4]
[330597544,1719609040686,-500.0,0.00021917,4]
[330597546,1719609040698,-500.0,0.00021917,4]
[330597548,1719609040708,-500.0,0.00021917,4]
[330597550,1719609040717,-775.03,0.00021917,4]
[330597552,1719609040728,-500.0,0.00021917,4]
[330597554,1719609040737,-500.0,0.00021917,4]
[330597556,1719609040747,-500.0,0.00021917,4]
[330597558,1719609040756,-500.0,0.00021917,4]
[330597560,1719609040766,-1047.09,0.00021917,4]
[330597562,1719609040775,-500.0,0.00021917,4]
[330597563,1719609040785,-597.64,0.00021917,4]
[330597565,1719609040795,-500.0,0.00021917,4]
[330597567,1719609040804,-1602.1,0.00021917,4]
[330597569,1719609040814,-619.46,0.00021917,4]
[330597571,1719609040823,-500.0,0.00021917,4]
[330597573,1719609040834,-1252.86,0.00021917,4]
[330597575,1719609040844,-748.7,0.00021917,4]
[330597577,1719609040854,-500.0,0.00021917,4]
[330597579,1719609040864,-725.68,0.00021917,4]
[330597581,1719609040874,-500.0,0.00021917,4]
[330597583,1719609040884,-500.0,0.00021917,4]
[330597585,1719609040894,-500.0,0.00021917,4]
[330597587,1719609040904,-3105.39,0.00021917,4]
[330597590,1719609040913,-500.0,0.00021917,4]
[330597593,1719609040923,-500.0,0.00021917,4]
[330597596,1719609040933,-500.0,0.00021917,4]
[330597613,1719609041043,-500.0,0.00021917,4]
[330597615,1719609041054,-1391.86,0.00021917,4]
[330597617,1719609041064,-500.0,0.00021917,4]
[330597619,1719609041074,-290.63593593,0.00021917,4]
[330597621,1719609041084,-500.0,0.00021917,4]
[330597623,1719609041093,-598.89,0.00021917,4]
[330597624,1719609041103,-1221.39,0.00021917,4]
[330597626,1719609041113,-500.0,0.00021917,4]
[330597628,1719609041123,-500.0,0.00021917,4]
[330597630,1719609041133,-761.97,0.00021917,4]
[330597632,1719609041143,-500.0,0.00021917,4]
[330597634,1719609041152,-500.0,0.00021917,4]
[330597636,1719609041161,-500.0,0.00021917,4]
[330597638,1719609041171,-504.58832158,0.00021917,4]
[330597640,1719609041180,-506.1980373,0.00021917,4]
[330597642,1719609041190,-500.0,0.00021917,4]
[330597644,1719609041201,-500.0,0.00021917,4]
[330597646,1719609041211,-1916.95,0.00021917,4]
[330597648,1719609041220,-500.0,0.00021917,4]
[330597650,1719609041230,-500.0,0.00021917,4]
[330597652,1719609041239,-911.28,0.00021917,4]
[330597654,1719609041249,-500.0,0.00021917,4]
[330597656,1719609041260,-3430.95,0.00021917,4]
[330597658,1719609041270,-500.0,0.00021917,4]
[330597660,1719609041279,-500.0,0.00021917,4]
[330597662,1719609041289,-1274.5,0.00021917,2]
[330597663,1719609041298,-549.74919985,0.00021917,4]
[330597665,1719609041307,-786.07,0.00021917,4]
[330597667,1719609041318,-1472.43,0.00021917,4]
[330597669,1719609041327,-2096.46,0.00021917,4]
[330597671,1719609041337,-500.0,0.00021917,4]
[330597673,1719609041347,-500.0,0.00021917,4]
[330597675,1719609041356,-500.0,0.00021917,4]
[330597677,1719609041366,-500.0,0.00021917,4]
[330597679,1719609041375,-500.0,0.00021917,4]
[330597681,1719609041384,-713.1,0.00021917,4]
[330597683,1719609041395,-1080.39,0.00021917,4]
[330597685,1719609041405,-500.0,0.00021917,4]
[330597687,1719609041414,-500.0,0.00021917,4]
[330597689,1719609041424,-500.0,0.00021917,4]
[330597691,1719609041433,-2759.26,0.00021917,4]
[330597693,1719609041446,-500.0,0.00021917,4]
[330597694,1719609041455,-500.0,0.00021917,4]
[330597696,1719609041463,-1561.25,0.00021917,4]
[330597698,1719609041472,-500.0,0.00021917,4]
[330597700,1719609041481,-500.0,0.00021917,4]
[330597702,1719609041490,-1056.09,0.00021917,4]
[330597704,1719609041500,-508.89038591,0.00021917,4]
[330597706,1719609041509,-500.0,0.00021917,4]
[330597708,1719609041518,-500.0,0.00021917,4]
[330597710,1719609041529,-500.0,0.00021917,4]
[330597712,1719609041539,-626.89,0.00021917,4]
[330597714,1719609041549,-644.23,0.00021917,4]
[330597716,1719609041559,-500.0,0.00021917,4]
[330597718,1719609041569,-919.74,0.00021917,4]
[330597720,1719609041579,-500.0,0.00021917,4]
[330597722,1719609041590,-500.0,0.00021917,4]
[330597724,1719609041600,-500.0,0.00021917,4]
[330597726,1719609041609,-500.0,0.00021917,4]
[330597728,1719609041619,-500.0,0.00021917,4]
[330597730,1719609041629,-507.94764449,0.00021917,4]
[330597732,1719609041640,-1445.87,0.00021917,4]
[330597734,1719609041649,-526.73,0.00021917,4]
[330597736,1719609041658,-500.0,0.00021917,4]
[330597738,1719609041668,-500.0,0.00021917,4]
[330597740,1719609041678,-500.0,0.00021917,4]
[330597742,1719609041687,-500.0,0.00021917,4]
[330597744,1719609041699,-500.0,0.00021917,4]
[330597746,1719609041709,-900.52,0.00021917,4]
[330597748,1719609041718,-500.0,0.00021917,4]
[330597750,1719609041727,-2606.56,0.00021917,4]
[330597752,1719609041737,-500.0,0.00021917,2]
[330597754,1719609041747,-500.0,0.00021917,4]
[330597756,1719609041757,-2915.15,0.00021917,4]
[330597758,1719609041766,-422.81527742,0.00021917,4]
[330597760,1719609041775,-1075.26,0.00021917,4]
[330597762,1719609041784,-898.0,0.00021917,4]
[330597764,1719609041794,-500.0,0.00021917,4]
[330597766,1719609041804,-1017.0,0.00021917,4]
[330597768,1719609041812,-500.0,0.00021917,4]
[330597770,1719609041821,-500.0,0.00021917,4]
[330597772,1719609041830,-500.0,0.00021917,4]
[330597774,1719609041840,-769.17,0.00021917,4]
[330597775,1719609041849,-500.0,0.00021917,4]
[330597777,1719609041859,-724.43,0.00021917,4]
[330597779,1719609041868,-500.0,0.00021917,4]
[330597781,1719609041877,-500.0,0.00021917,4]
[330597783,1719609041886,-500.0,0.00021917,4]
[330597785,1719609041896,-1811.19,0.00021917,4]
[330597787,1719609041906,-510.7943544,0.00021917,4]
[330597789,1719609041916,-500.0,0.00021917,4]
[330597791,1719609041925,-745.75,0.00021917,4]
[330597793,1719609041934,-500.0,0.00021917,4]
[330597795,1719609041946,-500.0,0.00021917,4]
[330597797,1719609041956,-490.57882947,0.00021917,4]
[330597799,1719609041965,-500.0,0.00021917,4]
[330597802,1719609041975,-555.14,0.00021917,4]
[330597804,1719609041985,-500.0,0.00021917,4]
[330597805,1719609041995,-500.0,0.00021917,4]
[330597808,1719609042006,-1060.47,0.00021917,4]
[330597809,1719609042017,-561.23,0.00021917,4]
[330597811,1719609042027,-1646.45,0.00021917,4]
[330597814,1719609042039,-502.01806864,0.00021917,4]
[330597815,1719609042049,-500.0,0.00021917,4]
[330597817,1719609042059,-500.0,0.00021917,4]
[330597819,1719609042068,-500.0,0.00021917,4]
[330597821,1719609042078,-500.0,0.00021917,4]
[330597823,1719609042092,-1636.48,0.00021917,4]
[330597825,1719609042102,-500.0,0.00021917,4]
[330597827,1719609042111,-964.22472414,0.00021917,4]
[330597830,1719609042128,-1939.18527586,0.00021917,4]
[330597832,1719609042138,-500.0,0.00021917,4]
[330597834,1719609042147,-500.0,0.00021917,4]
[330597836,1719609042157,-14866.17520414,0.00021917,4]
[330597838,1719609042168,-3538.28272846,0.00021917,4]
[330597968,1719609044272,-4709.1220674,0.00021917,4]
[330597969,1719609044281,-882.01,0.00021917,4]
[330597970,1719609044290,-500.0,0.00021917,4]
[330597971,1719609044299,-1643.03,0.00021917,4]
[330597972,1719609044308,-500.0,0.00021917,4]
[330597973,1719609044317,-500.0,0.00021917,4]
[330597974,1719609044326,-628.52,0.00021917,4]
[330597975,1719609044335,-504.67531698,0.00021917,4]
[330597976,1719609044344,-500.0,0.00021917,4]
[330597977,1719609044353,-500.0,0.00021917,4]
[330597978,1719609044361,-1414.53,0.00021917,4]
[330597979,1719609044370,-500.0,0.00021917,4]
[330597980,1719609044380,-500.0,0.00021917,4]
[330597981,1719609044388,-500.0,0.00021917,4]
[330597982,1719609044397,-500.0,0.00021917,4]
[330597983,1719609044406,-11320.71,0.00021917,4]
[330597984,1719609044414,-500.0,0.00021917,4]
[330597985,1719609044423,-555.85,0.00021917,4]
[330597986,1719609044432,-500.0,0.00021917,4]
[330597987,1719609044443,-644.76,0.00021917,4]
[330597988,1719609044452,-378.37786717,0.00021917,4]
[330597989,1719609044462,-585.25,0.00021917,4]
[330597990,1719609044472,-756.94,0.00021917,4]
[330597991,1719609044481,-500.0,0.00021917,4]
[330597992,1719609044491,-500.0,0.00021917,4]
[330597993,1719609044500,-500.0,0.00021917,4]
[330597994,1719609044509,-1188.67,0.00021917,4]
[330597995,1719609044519,-504.37636322,0.00021917,4]
[330597996,1719609044527,-500.0,0.00021917,4]
[330597997,1719609044536,-1280.69,0.00021917,4]
[330597998,1719609044546,-500.0,0.00021917,4]
[330597999,1719609044555,-788.02,0.00021917,4]
[330598000,1719609044565,-500.0,0.00021917,4]
[330598001,1719609044575,-3712.0,0.00021917,4]
[330598002,1719609044585,-2279.24,0.00021917,4]
[330598003,1719609044594,-500.0,0.00021917,4]
[330598004,1719609044603,-500.0,0.00021917,4]
[330598005,1719609044613,-4032.61,0.00021917,4]
[330598006,1719609044623,-1001.0,0.00021917,4]